bitfinex/quotes_ETHUSD_20240614
["timestamp","ask_amount","ask_price","bid_price","bid_amount"]
[1718376492994,2.86804,3486.7,3485.7,0.95007058]
[1718376493196,0.07171256,3486.6,3485.5,1.722]
[1718376493632,0.07171256,3486.6,3485.6,2.86888]
[1718376493836,0.07171256,3486.6,3485.5,2.86902]
[1718376494129,0.07171256,3486.6,3485.4,2.8691]
[1718376494715,0.07171256,3486.6,3485.8,2.86876]
[1718376494921,3.0,3486.9,3485.4,6.02454514]
[1718376494922,0.0717109,3486.8,3485.9,0.286876]
[1718376495122,0.07171199,3486.7,3485.5,2.86902]
[1718376495835,0.07171199,3486.7,3485.6,2.92626959]
[1718376496001,0.07171199,3486.7,3485.7,2.86885]
[1718376496335,0.07171199,3486.7,3485.8,0.05736955]
[1718376496633,0.07171199,3486.7,3485.5,2.86902]
[1718376496831,0.07171199,3486.7,3485.6,0.88935651]
[1718376497236,3.07171199,3486.7,3485.6,0.88935651]
[1718376497440,0.0297,3486.5,3485.2,8.942]
[1718376497607,3.10141713,3486.5,3485.2,13.24469514]
[1718376497802,0.10141713,3486.5,3485.2,13.24469514]
[1718376498002,3.10141713,3486.5,3485.2,13.24469514]
[1718376498825,5.96963713,3486.5,3485.2,6.02469514]
[1718376499028,5.96963713,3486.5,3485.3,1.12106251]
[1718376500860,3.10141713,3486.5,3485.3,3.99023251]
[1718376501360,3.07171713,3486.5,3485.5,2.86899]
[1718376501539,3.07171713,3486.5,3485.5,2.86901]
[1718376501736,3.07171713,3486.5,3485.6,1.05646976]
[1718376502513,3.07171713,3486.5,3485.4,3.70544514]
[1718376506133,5.93992713,3486.5,3485.4,3.70544514]
[1718376506538,2.86831,3486.4,3485.4,2.272]
[1718376506741,3.07171356,3486.3,3485.4,2.272]
[1718376507940,3.0,3486.2,3485.3,1.12106251]
[1718376508265,3.0,3486.2,3484.7,9.6901]
[1718376508266,3.96572473,3486.1,3484.8,1.722]
[1718376508557,2.86876,3485.9,3484.8,1.722]
[1718376508973,3.0,3486.1,3484.8,3.15544514]
[1718376509265,0.07172255,3486.0,3484.9,3.15544514]
[1718376509445,2.86871,3485.9,3484.9,4.29193365]
[1718376509764,2.94051336,3485.8,3484.9,1.722]
[1718376509952,0.07173196,3485.7,3484.5,1.722]
[1718376510156,0.07173196,3485.7,3484.6,1.43344514]
[1718376510355,4.815,3486.1,3484.8,4.59153]
[1718376510546,0.0717249,3486.0,3484.9,0.88946551]
[1718376510852,0.0717249,3486.0,3485.0,2.92679993]
[1718376511065,0.0717249,3486.0,3485.0,2.86942]
[1718376511264,0.0717249,3486.0,3485.0,4.59142]
[1718376511474,0.0717249,3486.0,3485.0,1.722]
[1718376511652,0.0717249,3486.0,3485.1,0.69144207]
[1718376513437,0.0717249,3486.0,3484.9,0.88946551]
[1718376513635,2.86889,3485.7,3484.5,4.59182]
[1718376513953,2.86871,3485.9,3484.6,2.86976]
[1718376513954,0.07173117,3485.6,3484.6,2.86976]
[1718376516051,0.07173117,3485.6,3484.5,3.15544514]
[1718376516258,3.07173117,3485.6,3484.5,3.15544514]
[1718376516579,3.07173117,3485.6,3484.6,1.13272151]
[1718376517379,0.07173117,3485.6,3484.6,1.13272151]
[1718376518082,0.07173117,3485.6,3484.6,4.00248151]
[1718376519406,3.0,3485.9,3484.9,2.8695]
[1718376519581,4.815,3486.1,3485.2,2.86925]
[1718376519759,4.815,3486.1,3485.3,0.65746951]
[1718376520095,1.815,3486.1,3485.4,0.05737402]
[1718376520252,1.815,3486.1,3485.3,0.65746951]
[1718376521207,4.815,3486.1,3485.1,4.1195]
[1718376521412,0.07171807,3486.0,3485.1,3.15544514]
[1718376522057,4.815,3486.1,3485.1,3.15544514]
[1718376524170,0.07171833,3486.0,3485.1,3.15544514]
[1718376524403,0.07171833,3486.0,3485.1,4.04489065]
[1718376525066,3.0,3486.1,3485.1,4.04489065]
[1718376525394,0.07171834,3486.0,3485.1,4.04489065]
[1718376527065,0.07171834,3486.0,3484.7,4.1156]
[1718376527263,2.94034834,3486.0,3484.7,8.41872514]
[1718376527771,0.07171834,3486.0,3484.8,2.86958]
[1718376530474,0.07171834,3486.0,3484.9,2.86951]
[1718376530682,0.07171834,3486.0,3485.0,1.12882251]
[1718376531186,3.0,3486.1,3485.1,2.92673118]
[1718376531568,0.07172001,3486.0,3485.1,0.05738118]
[1718376531760,3.0,3486.1,3485.1,6.08211632]
[1718376531959,3.0,3486.1,3485.2,3.87727688]
[1718376532198,3.0,3486.1,3485.3,2.86917]
[1718376532785,0.07171864,3486.0,3485.3,2.86917]
[1718376533715,3.0297,3486.7,3485.7,2.86879]
[1718376533864,0.07171078,3486.6,3485.8,0.34424762]
[1718376534065,0.0717098,3486.6,3485.5,7.03191]
[1718376534265,1.815,3486.5,3485.1,8.942]
[1718376534607,0.0717187,3486.4,3485.3,2.86918]
[1718376534809,3.0,3486.3,3485.1,10.08935]
[1718376535005,0.07172241,3486.2,3485.1,10.08935]
[1718376535512,1.815,3486.1,3485.1,7.22]
[1718376535679,0.07172569,3486.0,3485.1,7.22]
[1718376535873,0.07172569,3486.0,3485.0,2.86943]
[1718376536070,0.07172569,3486.0,3485.1,3.67283355]
[1718376537072,0.07172569,3486.0,3485.1,0.80348355]
[1718376538104,1.815,3486.1,3485.1,0.80348355]
[1718376538278,3.0,3486.2,3485.1,0.80348355]
[1718376538487,3.0,3486.6,3485.8,2.86876]
[1718376538803,3.0,3486.6,3485.5,1.722]
[1718376538804,3.07171085,3486.5,3485.5,1.722]
[1718376539016,3.07171085,3486.5,3485.5,3.15544514]
[1718376539190,0.07171085,3486.5,3485.5,3.15544514]
[1718376539391,0.07171085,3486.5,3485.5,4.591]
[1718376539699,1.37415426,3486.5,3485.5,4.591]
[1718376540429,1.37415426,3486.5,3485.4,2.8691]
[1718376541124,0.07171085,3486.5,3485.4,2.8691]
[1718376541634,0.07171085,3486.5,3485.3,2.86919]
[1718376541635,0.07171085,3486.5,3485.3,2.86917]
[1718376541830,0.07171085,3486.5,3485.2,12.36126]
[1718376541831,4.815,3486.3,3485.2,7.22]
[1718376542024,0.07172482,3486.2,3485.2,7.22]
[1718376542225,0.07172482,3486.2,3485.2,8.8371483]
[1718376542428,5.94019482,3486.2,3485.2,7.22]
[1718376542631,7.68371,3485.9,3484.6,10.08974]
[1718376542810,7.68371,3485.9,3484.5,3.04559603]
[1718376542811,0.07173124,3485.8,3484.7,2.86967]
[1718376543008,3.07173124,3485.8,3484.7,2.86967]
[1718376543705,3.07173124,3485.8,3484.5,5.91543603]
[1718376544019,4.29907103,3485.8,3484.6,4.01032001]
[1718376545103,0.07173392,3485.7,3485.0,2.86942]
[1718376546435,0.07173392,3485.7,3484.8,2.86953]
[1718376546436,0.07173392,3485.7,3484.8,2.86952]
[1718376546936,0.07173392,3485.7,3484.9,2.86949]
[1718376547510,0.07173392,3485.7,3484.8,2.86958]
[1718376547844,1.815,3485.6,3484.6,4.01031001]
[1718376548043,0.07173474,3485.5,3484.6,4.01031001]
[1718376548346,0.07173474,3485.5,3484.6,1.14056001]
[1718376549144,0.07173474,3485.5,3484.4,1.722]
[1718376549514,0.0297,3485.4,3484.2,0.59879603]
[1718376549857,0.0297,3485.4,3484.0,8.942]
[1718376549858,1.815,3485.2,3484.0,8.942]
[1718376550145,3.0297,3485.4,3484.3,2.92739422]
[1718376550450,0.07173927,3485.3,3484.3,2.92739422]
[1718376550615,0.07173927,3485.3,3484.4,0.95518054]
[1718376551624,3.0297,3485.4,3484.5,0.05739142]
[1718376552153,1.49274922,3486.1,3485.0,1.722]
[1718376552369,0.0297,3486.4,3485.3,2.86913]
[1718376552512,0.10141898,3486.4,3485.4,0.05737518]
[1718376552718,0.10141898,3486.4,3485.5,0.29265052]
[1718376553415,3.10141898,3486.4,3485.5,0.29265052]
[1718376553638,0.10141898,3486.4,3485.5,0.29265052]
[1718376553841,1.52244922,3486.8,3485.7,2.86879]
[1718376554043,0.0297,3486.8,3485.9,2.86868]
[1718376554341,0.07170755,3486.9,3486.0,2.92596604]
[1718376554572,0.07170755,3486.9,3486.1,2.86851]
[1718376554948,0.07170755,3486.9,3485.8,2.35942591]
[1718376555278,0.07170574,3487.1,3485.9,3.88162571]
[1718376555841,3.07170574,3487.1,3486.0,2.86861]
[1718376556266,3.0,3486.9,3485.9,3.88161571]
[1718376556465,3.07170572,3486.8,3485.9,3.88161571]
[1718376556682,0.07170573,3486.7,3485.9,1.01293571]
[1718376556980,0.07170573,3486.7,3485.4,5.90182603]
[1718376556981,4.71305,3486.4,3485.1,3.46814603]
[1718376557144,4.71305,3486.4,3484.9,9.6253]
[1718376557145,3.07172012,3486.3,3485.3,2.86912]
[1718376557349,0.07172009,3486.2,3485.4,0.05737607]
[1718376557876,0.07172009,3486.2,3485.3,2.86912]
[1718376558402,0.07172009,3486.2,3484.9,10.22409603]
[1718376558678,0.07172009,3486.2,3484.5,2.86984]
[1718376558679,1.815,3486.0,3484.8,4.59159]
[1718376558979,0.07172635,3485.9,3484.6,2.86975]
[1718376559281,0.07172635,3485.9,3484.4,10.08991]
[1718376559282,3.0,3485.5,3484.4,10.08991]
[1718376559480,0.07173576,3485.4,3484.5,4.16583]
[1718376559655,0.07173576,3485.4,3484.5,2.86983]
[1718376559977,0.07173576,3485.4,3484.4,2.86992]
[1718376560989,0.07173576,3485.4,3484.3,4.59199]
[1718376561147,3.10143576,3485.4,3484.1,4.59211]
[1718376561350,3.10143576,3485.4,3484.2,1.181211]
[1718376561351,1.17998234,3485.4,3484.2,1.181211]
[1718376561561,4.17998234,3485.4,3484.2,1.181211]
[1718376561887,3.0,3485.1,3483.9,7.22]
[1718376562084,0.07174586,3485.0,3483.9,7.22]
[1718376562438,4.68452,3484.9,3483.9,7.22]
[1718376562552,0.07174894,3484.8,3484.0,0.05739915]
[1718376562887,0.07174894,3484.8,3484.0,1.53142707]
[1718376563082,0.07174894,3484.7,3484.0,1.47402792]
[1718376563274,0.07174895,3484.9,3484.0,1.47402792]
[1718376564706,3.0,3485.0,3484.2,2.87003]
[1718376565046,3.0,3485.0,3484.3,2.92737313]
[1718376565356,3.0,3485.0,3484.4,0.57974031]
[1718376565556,3.0,3485.1,3484.4,0.57974031]
[1718376565972,3.0297,3485.4,3484.5,2.86984]
[1718376566259,3.0,3485.4,3484.6,2.92714117]
[1718376566681,3.0,3485.8,3485.0,2.86942]
[1718376566881,3.0,3485.7,3485.1,3.443242]
[1718376567098,3.0,3486.1,3485.1,3.443242]
[1718376567260,0.07172713,3486.0,3485.1,0.573902]
[1718376567469,0.07172713,3486.0,3485.1,3.50063371]
[1718376567675,0.07172713,3486.0,3485.2,2.86926]
[1718376568228,3.0,3486.1,3485.3,0.05737842]
[1718376568497,0.07172302,3486.0,3485.3,2.92654842]
[1718376568860,0.0717222,3486.3,3485.3,2.92654842]
[1718376569162,3.0,3486.1,3485.2,3.6727192]
[1718376569360,0.0717222,3486.0,3485.2,3.6727192]
[1718376569591,0.0717222,3486.0,3485.3,0.88380212]
[1718376570274,0.0717222,3486.0,3485.3,3.75298212]
[1718376575714,1.8447,3486.4,3485.3,3.75298212]
[1718376575715,0.0297,3486.4,3485.4,3.15544514]
[1718376575865,0.10141359,3486.4,3485.5,2.86895]
[1718376576067,6.0,3486.5,3485.7,2.86886]
[1718376576507,6.0,3486.5,3485.6,3.55973973]
[1718376576681,6.0,3486.5,3485.7,0.05737088]
[1718376576868,6.0,3486.5,3485.8,2.86871]
[1718376577281,6.0,3486.5,3485.7,2.86884]
[1718376577487,6.0,3486.5,3485.7,2.92621089]
[1718376577693,6.0,3486.5,3485.7,3.89035347]
[1718376579099,0.07171362,3486.4,3485.7,3.89035347]
[1718376580111,6.0,3486.5,3485.7,3.89035347]
[1718376580313,0.07171361,3486.4,3485.7,2.92621089]
[1718376580666,6.0,3486.5,3485.7,2.92621089]
[1718376581507,0.0297,3486.8,3486.1,2.86851]
[1718376581686,0.07170616,3486.8,3486.1,2.86851]
[1718376582005,3.0,3487.0,3486.3,2.86835]
[1718376582172,0.07170086,3486.9,3486.3,2.86835]
[1718376583105,3.07170086,3486.9,3486.3,2.86835]
[1718376583976,3.07170086,3486.9,3486.2,2.86843]
[1718376584171,0.1229951,3487.2,3486.4,2.86828]
[1718376584424,0.1229951,3487.2,3486.5,2.86818]
[1718376584775,0.1229951,3487.2,3486.6,0.05735398]
[1718376585117,0.1229951,3487.2,3487.0,2.86773]
[1718376585286,0.1229951,3487.2,3487.1,2.92505902]
[1718376585485,0.1229951,3487.2,3487.1,3.67655092]
[1718376586258,0.1229951,3487.2,3487.1,5.39855092]
[1718376586421,0.1229951,3487.2,3487.1,5.94855092]
[1718376586740,0.1229951,3487.2,3487.1,5.8912019]
[1718376587009,0.1229951,3487.2,3487.1,0.7514919]
[1718376587216,0.1229951,3487.2,3486.7,1.43344514]
[1718376587217,0.1229951,3487.2,3486.7,4.59003]
[1718376587417,0.1229951,3487.2,3486.5,7.22]
[1718376587785,0.1229951,3487.2,3486.6,3.79774514]
[1718376587985,0.1229951,3487.2,3486.7,2.86801]
[1718376588200,0.1229951,3487.2,3486.6,5.2324]
[1718376588395,0.1229951,3487.2,3486.7,1.704253]
[1718376588771,0.1229951,3487.2,3486.7,4.572273]
[1718376589914,0.1229951,3487.2,3486.3,1.722]
[1718376590123,0.1229951,3487.2,3486.3,6.02379514]
[1718376590306,0.1229951,3487.2,3486.3,4.59035]
[1718376591013,0.1229951,3487.2,3486.3,1.722]
[1718376591213,0.1229951,3487.2,3486.4,2.92561743]
[1718376591397,0.1229951,3487.2,3486.4,4.03594527]
[1718376591727,0.1229951,3487.2,3486.4,1.11032784]
[1718376592026,0.1229951,3487.2,3486.2,4.59043]
[1718376592229,0.1229951,3487.2,3486.2,6.02387514]
[1718376592532,0.07169716,3487.1,3486.2,1.722]
[1718376593588,0.1946945,3487.2,3486.3,2.86835]
[1718376593901,0.1946945,3487.2,3486.4,0.977677]
[1718376594678,0.1229951,3487.2,3486.4,0.977677]
[1718376595280,0.1229951,3487.2,3486.5,0.05735552]
[1718376595615,0.1229951,3487.2,3486.4,0.977677]
[1718376596616,0.1229951,3487.2,3486.5,0.05735557]
[1718376596790,0.1229951,3487.2,3486.6,2.86812]
[1718376596975,0.1229951,3487.2,3486.5,2.86818]
[1718376597177,0.1229951,3487.2,3486.5,0.5567857]
[1718376597380,0.1229951,3487.2,3486.4,0.977677]
[1718376597627,0.1229951,3487.2,3486.5,2.86819]
[1718376598410,0.1229951,3487.2,3486.5,3.15544514]
[1718376598602,0.1229951,3487.2,3486.5,6.02362514]
[1718376598811,0.1229951,3487.2,3486.6,2.86811]
[1718376598998,0.1229951,3487.2,3486.6,3.85506021]
[1718376599386,0.1229951,3487.2,3486.7,2.86803]
[1718376599578,0.1229951,3487.2,3486.6,0.98695021]
[1718376600114,0.1229951,3487.2,3486.6,3.85506021]
[1718376600339,0.1229951,3487.2,3486.4,0.977677]
[1718376600623,0.1229951,3487.2,3486.3,4.5903]
[1718376600795,0.1229951,3487.2,3486.3,1.722]
[1718376602322,0.1229951,3487.2,3486.4,2.92562692]
[1718376602699,0.1229951,3487.2,3486.4,2.86827]
[1718376602895,0.07169661,3487.1,3486.2,1.722]
[1718376603101,0.0297,3487.0,3485.8,8.942]
[1718376603298,3.0,3486.9,3485.8,7.22]
[1718376603488,7.68296,3486.8,3485.8,7.22]
[1718376603686,0.07170894,3486.7,3485.8,7.22]
[1718376603911,0.07170894,3486.7,3485.8,8.29798397]
[1718376604295,0.07170894,3486.7,3485.8,7.22]
[1718376604504,2.93975894,3486.7,3485.8,7.22]
[1718376604698,3.0,3486.6,3485.8,7.22]
[1718376604898,0.07171343,3486.5,3485.8,7.22]
[1718376605184,0.07171343,3486.5,3485.5,2.86901]
[1718376605430,0.07171343,3486.5,3485.6,4.61933974]
[1718376605589,0.07171343,3486.5,3485.6,1.75040974]
[1718376605934,3.0,3486.8,3486.1,2.86852]
[1718376606132,0.0297,3487.0,3486.2,2.92581264]
[1718376606304,0.0297,3487.0,3486.3,0.05735956]
[1718376606703,0.10140111,3487.0,3486.1,2.86851]
[1718376606900,0.10140111,3487.0,3486.2,3.614361]
[1718376607103,0.10140111,3487.0,3486.3,0.05736089]
[1718376607387,0.10140111,3487.0,3485.9,4.59069]
[1718376607588,3.0,3486.8,3485.7,4.59086]
[1718376607829,0.0717077,3486.7,3485.6,1.693039]
[1718376608130,3.0717077,3486.7,3485.7,0.4562059]
[1718376609204,3.0717077,3486.7,3485.7,3.3250359]
[1718376609391,3.0,3486.7,3485.8,2.86876]
[1718376609594,3.0,3486.7,3485.9,2.86867]
[1718376609812,3.0,3486.7,3486.0,2.92595489]
[1718376610029,1.9379951,3487.2,3486.0,2.92595489]
[1718376610030,3.1229951,3487.2,3486.2,1.722]
[1718376610261,0.07169726,3487.1,3486.3,2.86834]
[1718376610462,0.07169726,3487.1,3486.1,3.44797249]
[1718376610769,0.07169726,3487.1,3485.7,7.6762059]
[1718376610770,0.0297,3486.7,3485.7,7.22]
[1718376611064,0.0297,3486.7,3485.8,0.05737015]
[1718376611065,0.10141269,3486.7,3485.8,0.05737015]
[1718376611368,3.1526951,3487.2,3486.2,2.86839]
[1718376611587,3.0,3487.1,3486.1,2.86851]
[1718376612223,0.1526951,3487.2,3486.2,2.86843]
[1718376612742,0.1526951,3487.2,3486.1,2.86851]
[1718376613344,3.0,3486.9,3486.2,2.86841]
[1718376613655,3.0,3486.9,3486.3,0.745892]
[1718376613846,3.0,3486.9,3486.0,4.59059]
[1718376614032,3.0,3486.9,3486.0,6.02403514]
[1718376614759,3.0,3486.9,3486.1,2.86852]
[1718376615057,3.0,3486.9,3486.0,6.02397514]
[1718376616730,3.0,3486.9,3486.0,3.15544514]
[1718376616939,3.0,3486.9,3486.0,4.86819496]
[1718376617118,3.0,3486.9,3486.2,1.722]
[1718376617855,0.1229951,3487.2,3486.4,2.86826]
[1718376618158,0.1229951,3487.2,3486.6,4.59012]
[1718376618341,0.1229951,3487.2,3486.8,2.86789]
[1718376618542,0.1229951,3487.2,3486.9,0.0573496]
[1718376618850,0.1229951,3487.2,3486.8,2.86789]
[1718376619925,0.1229951,3487.2,3486.9,2.86786]
[1718376622055,0.1229951,3487.2,3486.8,4.58994]
[1718376622262,0.1229951,3487.2,3487.0,2.86778]
[1718376623340,0.1229951,3487.2,3486.9,3.53100772]
[1718376623537,0.1229951,3487.2,3486.4,2.86827]
[1718376623743,0.1229951,3487.2,3486.5,2.86819]
[1718376624147,0.0297,3487.1,3486.3,10.08834]
[1718376624481,0.0297,3487.1,3486.4,1.467878]
[1718376625561,0.0297,3487.1,3486.4,4.336158]
[1718376625886,0.0297,3487.1,3486.4,1.467878]
[1718376626380,0.19469107,3487.2,3486.4,4.336148]
[1718376626555,0.19469107,3487.2,3486.7,2.86803]
[1718376626556,0.1229951,3487.2,3486.7,2.86803]
[1718376626758,0.1229951,3487.2,3486.8,0.34989245]
[1718376626951,0.1229951,3487.2,3486.9,2.86786]
[1718376627277,0.1229951,3487.2,3487.0,2.92506868]
[1718376627665,0.1229951,3487.2,3487.0,2.86772]
[1718376627844,0.1229951,3487.2,3487.0,3.92953687]
[1718376628313,0.1229951,3487.2,3487.1,2.86771]
[1718376628941,0.1229951,3487.2,3487.1,5.73542]
[1718376632953,0.1229951,3487.2,3487.1,8.60313]
[1718376633956,0.1229951,3487.2,3487.1,11.75857514]
[1718376634160,0.1229951,3487.2,3487.1,18.81675781]
[1718376634506,0.1229951,3487.2,3487.1,13.12974781]
[1718376635005,0.1229951,3487.2,3487.1,10.26203781]
[1718376635298,0.1229951,3487.2,3487.1,5.96088267]
[1718376635658,0.1229951,3487.2,3487.1,8.82859267]
[1718376637468,0.1229951,3487.2,3487.1,13.67974781]
[1718376638799,0.1229951,3487.2,3487.1,8.82859267]
[1718376639184,0.1229951,3487.2,3487.1,5.96088267]
[1718376639692,0.1229951,3487.2,3486.8,0.29253867]
[1718376640000,0.1229951,3487.2,3486.6,2.8681]
[1718376640418,0.1229951,3487.2,3486.4,4.336148]
[1718376640419,0.1229951,3487.2,3486.4,1.467878]
[1718376640560,0.1229951,3487.2,3486.3,7.22]
[1718376640766,0.05642868,3487.1,3486.3,7.22]
[1718376641011,0.12812839,3487.1,3486.3,7.22]
[1718376641609,0.12812839,3487.1,3486.4,2.86828]
[1718376641814,0.05642868,3487.1,3486.6,2.8681]
[1718376642115,0.1229951,3487.2,3486.7,3.76293749]
[1718376642415,0.05607998,3487.1,3486.3,10.08829]
[1718376642584,0.12777859,3487.1,3486.3,10.08829]
[1718376642763,0.07169861,3487.1,3486.3,7.22]
[1718376642958,0.05598882,3487.0,3486.3,7.22]
[1718376644818,0.05598882,3487.0,3486.3,11.556233]
[1718376645099,0.07169861,3487.1,3486.3,11.556233]
[1718376645404,0.05598882,3487.0,3486.3,4.336233]
[1718376646005,0.05598882,3487.0,3486.4,0.05735982]
[1718376646178,0.05598882,3487.0,3486.3,4.336243]
[1718376646889,0.05598882,3487.0,3486.3,1.467893]
[1718376647202,0.05598882,3487.0,3486.2,2.86843]
[1718376647699,0.05598882,3487.0,3486.3,2.86832]
[1718376647912,0.05598882,3487.0,3486.4,2.86826]
[1718376648297,0.05598882,3487.0,3486.6,2.86812]
[1718376648502,0.1229951,3487.2,3486.7,0.05735426]
[1718376648674,0.1229951,3487.2,3486.9,2.8678]
[1718376648876,0.05600341,3487.1,3487.0,5.79292853]
[1718376649128,0.1229951,3487.2,3487.1,5.73542]
[1718376649478,0.1229951,3487.2,3487.1,12.30857514]
[1718376650771,0.1229951,3487.2,3487.1,17.55398514]
[1718376650983,0.0297,3489.1,3487.8,2.3777]
[1718376651176,0.05372251,3489.0,3488.6,2.86647]
[1718376651484,0.05372251,3489.0,3488.5,2.86655]
[1718376651677,0.05372251,3489.0,3488.6,0.05732442]
[1718376651873,0.0297,3489.6,3488.6,3.677358]
[1718376652120,0.05038008,3489.5,3488.9,2.86616]
[1718376653500,0.05038008,3489.5,3489.0,2.86614]
[1718376654332,0.05038008,3489.5,3488.6,3.62003358]
[1718376654333,0.05038008,3489.5,3489.4,2.86582]
[1718376654531,0.05038008,3489.5,3489.4,12.30290514]
[1718376654827,0.07162988,3490.6,3489.5,4.58773]
[1718376655005,0.07162988,3490.6,3489.5,1.722]
[1718376655175,0.07162988,3490.6,3489.5,4.58773]
[1718376655176,0.0495198,3490.5,3489.5,4.58773]
[1718376655379,0.12114955,3490.5,3489.6,2.86565]
[1718376655684,0.12114955,3490.5,3489.5,4.58773]
[1718376656006,0.44853402,3490.5,3489.5,4.58773]
[1718376656781,3.0,3490.3,3489.4,0.55]
[1718376657119,3.0,3490.3,3489.2,1.722]
[1718376657120,0.07163493,3490.2,3489.2,1.722]
[1718376657319,0.07163493,3490.2,3489.1,7.22]
[1718376657320,0.12096668,3490.2,3489.1,7.22]
[1718376657615,0.59860467,3490.1,3489.1,7.22]
[1718376657818,0.07164248,3490.0,3489.1,7.22]
[1718376658019,0.12162106,3490.0,3489.1,7.22]
[1718376658723,0.12162106,3490.0,3489.1,10.37544514]
[1718376658924,0.12162106,3490.0,3489.3,2.86588]
[1718376658925,0.04997858,3490.0,3489.3,2.86588]
[1718376659124,0.04997858,3490.0,3489.4,0.0573079]
[1718376659488,0.04983612,3489.9,3489.4,0.0573079]
[1718376659890,0.07163486,3490.2,3489.4,0.0573079]
[1718376660119,0.04977342,3489.8,3489.5,4.58771]
[1718376660323,0.07162991,3490.2,3489.3,1.61646991]
[1718376660506,0.07162991,3490.2,3489.2,1.722]
[1718376660507,0.04973057,3489.7,3489.2,1.722]
[1718376660821,0.40436836,3490.2,3489.2,1.722]
[1718376661225,0.04998137,3490.1,3489.2,1.722]
[1718376661553,0.12162014,3490.1,3489.2,1.722]
[1718376661720,0.467056,3490.1,3489.2,4.58796]
[1718376662023,0.467056,3490.1,3489.1,7.22]
[1718376662227,3.0,3489.9,3488.9,1.722]
[1718376662530,0.12143747,3489.8,3488.9,1.722]
[1718376662685,0.04979328,3489.8,3489.0,0.05731527]
[1718376662891,3.0,3490.2,3489.3,2.86589]
[1718376663194,2.17208447,3490.5,3489.7,2.86549]
[1718376663195,0.04996437,3490.1,3489.7,2.86549]
[1718376663419,0.35708447,3490.5,3489.8,0.05730238]
[1718376663420,0.0297,3490.5,3489.8,0.05730238]
[1718376663728,0.04987331,3490.0,3489.9,2.86539]
[1718376663934,0.1229951,3490.7,3489.9,2.86539]
[1718376664136,0.1229951,3490.7,3490.0,2.92262003]
[1718376664428,0.05026642,3490.6,3490.0,0.05730003]
[1718376664726,0.05026642,3490.6,3490.0,2.92262003]
[1718376665088,0.1229951,3490.7,3490.3,2.86507]
[1718376665506,0.04869878,3490.6,3490.4,2.92228689]
[1718376665801,0.1229951,3490.7,3490.3,2.86508]
[1718376665993,0.1229951,3490.7,3490.5,2.86489]
[1718376666245,0.1229951,3490.7,3490.6,7.16310514]
[1718376666401,0.1229951,3490.7,3490.6,9.17460865]
[1718376667425,0.1229951,3490.7,3490.6,12.03943865]
[1718376667629,0.1229951,3490.7,3490.6,9.17460865]
[1718376668340,0.1229951,3490.7,3490.6,5.75977865]
[1718376668523,0.1229951,3490.7,3490.6,9.17460865]
[1718376669412,0.1229951,3490.7,3490.6,6.30977865]
[1718376669819,0.1229951,3490.7,3489.9,5.8654]
[1718376669820,0.1229951,3490.7,3489.9,4.722]
[1718376670013,0.1229951,3490.7,3489.0,2.07990804]
[1718376670014,0.1229951,3490.7,3490.0,9.40445514]
[1718376670213,0.1229951,3490.7,3490.0,12.26976514]
[1718376670502,0.1229951,3490.7,3490.3,2.86505]
[1718376670730,0.1229951,3490.7,3490.0,7.97101]
[1718376671239,0.04936817,3490.6,3490.0,7.22]
[1718376671441,0.1209937,3490.6,3490.0,7.22]
[1718376671629,0.1209937,3490.6,3489.5,2.8657]
[1718376672001,3.0,3490.4,3489.0,3.05190804]
[1718376672203,2.86524,3490.2,3489.0,1.32990804]
[1718376672400,7.68002,3490.4,3489.2,2.86597]
[1718376672401,0.0490548,3490.1,3489.2,2.86597]
[1718376672639,0.07163271,3490.3,3489.3,4.35664131]
[1718376672858,0.04878231,3490.0,3489.3,4.29933514]
[1718376673060,0.04890768,3490.2,3489.4,0.05730617]
[1718376673221,0.04871962,3489.9,3489.4,0.05730617]
[1718376673427,0.07163271,3490.3,3489.5,0.72226213]
[1718376673647,0.04865693,3489.8,3489.0,10.08611]
[1718376673867,0.07163273,3490.2,3489.0,11.51955514]
[1718376674362,0.048845,3490.1,3489.0,7.22]
[1718376674562,2.86542,3489.9,3489.0,7.22]
[1718376674856,0.12030035,3489.8,3489.0,7.22]
[1718376675067,0.07164342,3489.7,3489.1,1.00863]
[1718376675371,0.04853153,3489.6,3489.0,7.22]
[1718376676167,0.07164525,3489.9,3489.0,7.22]
[1718376676367,2.93713525,3489.9,3489.0,7.22]
[1718376676660,4.72937557,3489.8,3489.0,7.22]
[1718376676841,0.07164591,3489.7,3489.0,7.22]
[1718376677223,0.04853153,3489.6,3489.0,7.22]
[1718376677428,0.04853153,3489.6,3489.0,1.008639]
[1718376677627,0.04853153,3489.6,3488.6,2.86646]
[1718376677847,0.07164592,3489.5,3488.6,1.43344514]
[1718376678263,2.91422612,3489.4,3488.4,7.22]
[1718376678450,0.07165319,3489.3,3488.4,7.22]
[1718376678660,2.93755319,3489.3,3488.4,8.228687]
[1718376678857,0.0482807,3489.2,3488.4,1.008687]
[1718376679028,2.98591606,3489.2,3487.9,10.08704]
[1718376679229,0.11993606,3489.2,3488.0,4.30037514]
[1718376680561,0.11993606,3489.2,3488.0,1.43344514]
[1718376680860,0.11993606,3489.2,3488.1,0.05732727]
[1718376681246,0.0482807,3489.2,3488.2,1.43344514]
[1718376681471,0.0482807,3489.2,3488.3,3.47466824]
[1718376681675,0.0482807,3489.2,3488.3,4.90811338]
[1718376681960,0.0482807,3489.2,3488.3,2.04140338]
[1718376682168,0.0482807,3489.2,3488.3,0.60795824]
[1718376682169,2.86607,3489.1,3488.3,0.60795824]
[1718376682369,0.11948375,3489.0,3487.7,3.0]
[1718376682527,0.11948375,3489.0,3487.6,10.08184]
[1718376682528,0.11948375,3489.0,3488.0,2.86695]
[1718376682845,0.11948375,3489.0,3488.0,4.30039514]
[1718376683249,0.04782343,3489.0,3488.0,4.30039514]
[1718376683439,0.04782343,3489.0,3488.1,0.05732825]
[1718376683630,0.04782343,3489.0,3488.2,0.43577234]
[1718376683833,0.11948375,3489.0,3488.2,0.43577234]
[1718376684532,0.11948375,3489.0,3488.3,0.05732826]
[1718376684735,0.04782343,3489.0,3488.3,0.05732826]
[1718376685564,0.04782343,3489.0,3488.5,2.86654]
[1718376685788,0.07165214,3489.4,3488.6,0.77972505]